bitfinex-derivatives/quotes_BTCF0:USTF0_20240913
["timestamp","ask_amount","ask_price","bid_price","bid_amount"]
[1726204953705,0.004,57930.0,57929.0,0.4125522]
[1726204953910,0.004,57930.0,57929.0,0.412553]
[1726204953911,0.206306,57930.0,57929.0,0.412553]
[1726204954307,0.206306,57930.0,57929.0,0.3608]
[1726204954817,0.206306,57930.0,57929.0,0.412553]
[1726204955019,0.206306,57930.0,57929.0,0.3608]
[1726204955202,0.215306,57930.0,57929.0,0.3608]
[1726204955510,0.215306,57930.0,57929.0,0.3618]
[1726204955511,0.220306,57930.0,57929.0,0.3618]
[1726204955715,0.222306,57930.0,57929.0,0.3618]
[1726204956218,0.31280984,57930.0,57929.0,0.3618]
[1726204956404,0.26418563,57930.0,57929.0,0.3618]
[1726204956605,0.26418563,57930.0,57929.0,0.001]
[1726204957115,0.27218563,57930.0,57929.0,0.002]
[1726204957419,0.30145565,57930.0,57929.0,0.002]
[1726204958408,0.30144756,57930.0,57929.0,0.002]
[1726204958912,0.38775356,57930.0,57929.0,0.002]
[1726204959816,0.30144756,57930.0,57929.0,0.002]
[1726204963020,0.25957602,57930.0,57929.0,0.002]
[1726204963519,0.110306,57930.0,57929.0,0.002]
[1726204964323,0.110306,57930.0,57929.0,0.05375709]
[1726204964709,0.110306,57930.0,57929.0,0.002]
[1726204965822,0.110306,57930.0,57929.0,0.088308]
[1726204970113,0.024,57930.0,57929.0,0.088308]
[1726204970615,0.024,57930.0,57929.0,0.15731094]
[1726204971025,0.024,57930.0,57929.0,0.088308]
[1726204972131,0.024,57930.0,57929.0,0.14007014]
[1726204973426,0.024,57930.0,57929.0,0.088308]
[1726204978123,0.0662131,57930.0,57929.0,0.088308]
[1726204978325,0.024,57930.0,57929.0,0.088308]
[1726204978719,0.06622283,57930.0,57929.0,0.088308]
[1726204979139,0.024,57930.0,57929.0,0.088308]
[1726204979430,0.024,57930.0,57929.0,1.206188]
[1726204981231,0.024,57930.0,57929.0,0.088308]
[1726204982536,0.024,57930.0,57929.0,0.449108]
[1726204983829,0.06623845,57930.0,57929.0,0.449108]
[1726204985531,0.06623845,57930.0,57929.0,0.088308]
[1726204986231,0.230306,57930.0,57929.0,0.088308]
[1726204986431,0.230306,57930.0,57929.0,0.14004337]
[1726204986636,0.110306,57930.0,57929.0,0.14004337]
[1726204987132,0.110306,57930.0,57929.0,0.208308]
[1726204987637,0.110306,57930.0,57929.0,0.569108]
[1726204988241,0.110306,57930.0,57929.0,0.63810352]
[1726204988439,0.110306,57930.0,57929.0,0.569108]
[1726204989238,0.024,57930.0,57929.0,0.569108]
[1726204989737,0.024,57930.0,57929.0,0.41454005]
[1726204990040,0.110306,57930.0,57929.0,0.41454005]
[1726204990837,0.110306,57930.0,57929.0,0.3628]
[1726204991043,0.110306,57930.0,57929.0,0.41454128]
[1726204991545,0.110306,57930.0,57929.0,0.3628]
[1726204995849,0.110306,57930.0,57929.0,0.002]
[1726204999451,0.230306,57930.0,57929.0,0.002]
[1726205003957,0.110306,57930.0,57929.0,0.088308]
[1726205007352,0.15227242,57930.0,57929.0,0.088308]
[1726205008054,0.15227242,57930.0,57929.0,0.002]
[1726205008251,0.110306,57930.0,57929.0,0.002]
[1726205009655,0.110306,57930.0,57929.0,0.05376145]
[1726205009861,0.110306,57930.0,57929.0,0.088308]
[1726205010164,0.110306,57930.0,57929.0,0.1400706]
[1726205010357,0.110306,57930.0,57929.0,0.088308]
[1726205012650,0.230306,57930.0,57929.0,0.088308]
[1726205012857,0.230306,57930.0,57929.0,0.07101638]
[1726205013065,0.230306,57930.0,57929.0,0.002]
[1726205013659,0.230306,57930.0,57929.0,0.07101638]
[1726205014070,0.230306,57930.0,57929.0,0.002]
[1726205014561,0.230306,57930.0,57929.0,0.07101638]
[1726205014962,0.230306,57930.0,57929.0,0.15732438]
[1726205016262,0.27228824,57930.0,57929.0,0.088308]
[1726205018361,0.3929273,57930.0,57929.0,0.088308]
[1726205019761,0.230306,57930.0,57929.0,0.002]
[1726205021362,0.230306,57930.0,57929.0,0.088308]
[1726205023859,0.230306,57930.0,57929.0,0.002]
[1726205026680,0.677412,57930.0,57929.0,0.002]
[1726205028475,0.677412,57930.0,57929.0,0.05378155]
[1726205028668,0.591106,57930.0,57929.0,0.05378155]
[1726205029068,0.677412,57930.0,57929.0,0.05378155]
[1726205030582,0.677412,57930.0,57929.0,0.002]
[1726205031177,0.76701471,57930.0,57929.0,0.002]
[1726205031381,0.40621471,57930.0,57929.0,0.002]
[1726205031583,0.76701471,57930.0,57929.0,0.002]
[1726205033081,0.40621471,57930.0,57929.0,0.002]
[1726205033283,0.76701471,57930.0,57929.0,0.002]
[1726205034681,0.76699194,57930.0,57929.0,0.002]
[1726205034878,0.40619194,57930.0,57929.0,0.002]
[1726205035183,0.76699194,57930.0,57929.0,0.002]
[1726205036772,0.40619194,57930.0,57929.0,0.002]
[1726205037089,0.76699194,57930.0,57929.0,0.002]
[1726205038077,0.40619194,57930.0,57929.0,0.002]
[1726205038379,0.677412,57930.0,57929.0,0.002]
[1726205039083,0.316612,57930.0,57929.0,0.002]
[1726205039284,0.677412,57930.0,57929.0,0.002]
[1726205041685,0.316612,57930.0,57929.0,0.002]
[1726205041888,0.677412,57930.0,57929.0,0.002]
[1726205044687,0.316612,57930.0,57929.0,0.002]
[1726205044888,0.677412,57930.0,57929.0,0.002]
[1726205046092,0.316612,57930.0,57929.0,0.002]
[1726205046391,0.7670667,57930.0,57929.0,0.002]
[1726205047581,0.76705478,57930.0,57929.0,0.002]
[1726205052585,0.71889318,57930.0,57929.0,0.002]
[1726205053094,0.35809318,57930.0,57929.0,0.002]
[1726205053295,0.316612,57930.0,57929.0,0.002]
[1726205054688,0.230306,57930.0,57929.0,0.002]
[1726205057097,0.677412,57930.0,57929.0,0.07105807]
[1726205061101,0.677412,57930.0,57929.0,0.002]
[1726205062604,0.677412,57930.0,57929.0,0.05379385]
[1726205062992,0.677412,57930.0,57929.0,0.002]
[1726205068304,0.82215645,57930.0,57929.0,0.002]
[1726205072100,0.82217363,57930.0,57929.0,0.002]
[1726205073008,0.46137363,57930.0,57929.0,0.002]
[1726205073209,0.82217363,57930.0,57929.0,0.002]
[1726205073700,0.90847963,57930.0,57929.0,0.002]
[1726205074004,0.90847963,57930.0,57921.0,0.004]
[1726205074005,0.172636,57922.0,57921.0,0.004]
[1726205074195,0.172636,57922.0,57914.0,0.0451]
[1726205074196,0.63610712,57922.0,57914.0,0.0451]
[1726205074396,0.20712091,57915.0,57914.0,0.13143]
[1726205074599,0.12788966,57915.0,57914.0,0.13143]
[1726205075001,0.24868157,57915.0,57914.0,0.13143]
[1726205075207,0.24868157,57915.0,57914.0,0.13243]
[1726205075401,0.12788966,57915.0,57914.0,0.13243]
[1726205076500,0.086329,57915.0,57914.0,0.13243]
[1726205076812,0.086329,57915.0,57914.0,0.18418288]
[1726205077311,0.087329,57915.0,57914.0,0.19018288]
[1726205078411,0.087329,57915.0,57914.0,0.21957726]
[1726205079414,0.087329,57915.0,57914.0,0.16782438]
[1726205081111,0.087329,57915.0,57914.0,0.0521]
[1726205083516,0.087329,57915.0,57914.0,0.12115807]
[1726205091514,0.087329,57915.0,57914.0,0.0521]
[1726205099535,0.173658,57915.0,57914.0,0.007]
[1726205101621,0.173658,57915.0,57914.0,0.09325367]
[1726205101931,0.173658,57915.0,57914.0,0.007]
[1726205102319,0.173658,57915.0,57914.0,0.09325367]
[1726205102535,0.173658,57915.0,57914.0,0.007]
[1726205103418,0.173658,57915.0,57914.0,0.12130256]
[1726205106532,0.173658,57915.0,57914.0,0.007]
[1726205107031,0.21471808,57915.0,57914.0,0.007]
[1726205107543,0.173658,57915.0,57914.0,0.007]
[1726205107846,0.21471598,57915.0,57914.0,0.007]
[1726205109537,0.21470198,57915.0,57914.0,0.007]
[1726205111928,0.57550198,57915.0,57914.0,0.007]
[1726205112630,0.48917298,57915.0,57914.0,0.007]
[1726205113624,0.448129,57915.0,57914.0,0.12138985]
[1726205114536,0.087329,57915.0,57914.0,0.12134129]
[1726205120447,0.087329,57915.0,57914.0,0.12137683]
[1726205121641,0.087329,57915.0,57914.0,0.007]
[1726205127553,0.173658,57915.0,57914.0,0.007]
[1726205128344,0.087329,57915.0,57914.0,0.007]
[1726205128541,0.087329,57915.0,57914.0,0.09334586]
[1726205129651,0.087329,57915.0,57914.0,0.007]
[1726205130346,0.448129,57915.0,57914.0,0.09334586]
[1726205131150,0.448129,57915.0,57914.0,0.2077786]
[1726205131353,0.534458,57915.0,57914.0,0.007]
[1726205131755,0.448129,57915.0,57914.0,0.007]
[1726205133358,0.534458,57915.0,57914.0,0.007]
[1726205135363,0.448129,57915.0,57914.0,0.007]
[1726205135551,0.48904031,57915.0,57914.0,0.007]
[1726205136571,0.57536931,57915.0,57914.0,0.007]
[1726205138973,0.48904031,57915.0,57914.0,0.007]
[1726205143561,0.448129,57915.0,57914.0,0.007]
[1726205144266,0.001,57915.0,57914.0,0.29407679]
[1726205144468,0.001,57915.0,57914.0,0.25353093]
[1726205146962,0.001,57915.0,57914.0,0.33986863]
[1726205147661,0.001,57915.0,57914.0,0.33986679]
[1726205147964,0.001,57915.0,57914.0,0.25353093]
[1726205148673,0.001,57915.0,57914.0,0.33972771]
[1726205148970,0.001,57915.0,57914.0,0.25339581]
[1726205149671,0.001,57915.0,57914.0,0.33972582]
[1726205149871,0.001,57915.0,57914.0,0.25339581]
[1726205150671,0.001,57915.0,57914.0,0.13913]
[1726205164284,0.087329,57915.0,57914.0,0.13913]
[1726205164592,0.12836884,57915.0,57914.0,0.09333]
[1726205164791,0.087329,57915.0,57914.0,0.09333]
[1726205166097,0.001,57915.0,57914.0,0.09333]
[1726205167202,0.087329,57915.0,57914.0,0.09333]
[1726205169283,0.001,57915.0,57914.0,0.17965787]
[1726205169489,0.090322,57920.0,57919.0,0.086323]
[1726205169788,0.086322,57920.0,57919.0,0.086323]
[1726205169992,0.086322,57920.0,57919.0,0.15538569]
[1726205170291,0.086322,57920.0,57919.0,0.086323]
[1726205170494,0.086322,57920.0,57919.0,0.155385]
[1726205170695,0.091322,57920.0,57919.0,0.155385]
[1726205171001,0.091322,57920.0,57919.0,0.156385]
[1726205173001,0.091322,57920.0,57919.0,0.087323]
[1726205173501,0.091322,57920.0,57919.0,0.15639253]
[1726205175103,0.452122,57920.0,57919.0,0.15639253]
[1726205175597,0.538444,57920.0,57919.0,0.07006953]
[1726205179596,0.538444,57920.0,57919.0,0.001]
[1726205180801,0.70027491,57920.0,57919.0,0.001]
[1726205183297,0.579483,57920.0,57919.0,0.001]
[1726205184507,0.70027491,57920.0,57919.0,0.001]
[1726205188801,0.538444,57920.0,57919.0,0.001]
[1726205189305,0.538444,57920.0,57919.0,0.07006953]
[1726205190915,0.452122,57920.0,57919.0,0.07006953]
[1726205191203,0.004,57924.0,57923.0,0.086317]
[1726205191405,0.086315,57924.0,57923.0,0.086317]
[1726205191611,0.1695,57926.0,57920.0,0.08632815]
[1726205191810,0.086318,57923.0,57920.0,0.17264915]
[1726205192012,0.086318,57923.0,57921.0,0.086319]
[1726205192906,0.3608,57922.0,57921.0,0.086319]
[1726205193605,0.3608,57922.0,57921.0,0.087319]
[1726205194707,0.3618,57922.0,57921.0,0.087319]
[1726205195202,0.3618,57922.0,57921.0,0.086319]
[1726205197802,0.001,57922.0,57921.0,0.567119]
[1726205198507,0.001,57922.0,57921.0,0.447119]
[1726205205415,0.001,57922.0,57921.0,0.567119]
[1726205215112,0.001,57922.0,57921.0,0.447119]
[1726205216720,0.04244737,57922.0,57921.0,0.447119]
[1726205217321,0.12876537,57922.0,57921.0,0.447119]
[1726205218311,0.24955728,57922.0,57921.0,0.447119]
[1726205218716,0.12876537,57922.0,57921.0,0.447119]
[1726205218919,0.087318,57922.0,57921.0,0.447119]
[1726205219922,0.087318,57922.0,57917.0,0.0513]
[1726205219923,0.448118,57922.0,57918.0,0.05175869]
[1726205220126,0.448118,57922.0,57917.0,0.004]
[1726205220127,0.086324,57918.0,57917.0,0.05175869]
[1726205220620,0.086324,57918.0,57915.0,0.086328]
[1726205220621,0.086326,57917.0,57916.0,0.05175869]
[1726205220827,0.206326,57917.0,57916.0,0.05175869]
[1726205222528,0.206326,57917.0,57915.0,0.13808669]
[1726205222914,0.206326,57917.0,57916.0,0.086327]
[1726205223315,0.207326,57917.0,57916.0,0.086327]
[1726205224027,0.23511208,57917.0,57916.0,0.086327]
[1726205225526,0.23411208,57917.0,57916.0,0.086327]
[1726205226227,0.23511208,57917.0,57916.0,0.086327]
[1726205228626,0.23511208,57917.0,57913.0,0.02662934]
[1726205228627,0.08633,57914.0,57913.0,0.086332]
[1726205228930,0.56713,57914.0,57913.0,0.086332]
[1726205229723,0.56713,57914.0,57913.0,0.091332]
[1726205231329,0.20633,57914.0,57913.0,0.091332]
[1726205235733,0.12,57916.0,57915.0,0.086329]
[1726205236637,0.12,57916.0,57915.0,0.15523938]
[1726205237033,0.12,57916.0,57915.0,0.087329]
[1726205237238,0.206327,57916.0,57915.0,0.087329]
[1726205238841,0.086327,57916.0,57915.0,0.087329]
[1726205239542,0.124,57918.0,57917.0,0.086326]
[1726205239735,0.086324,57919.0,57918.0,0.086324]
[1726205239931,0.086324,57919.0,57918.0,0.13801378]
[1726205240532,0.086324,57919.0,57918.0,0.086324]
[1726205240930,0.086324,57919.0,57918.0,0.13801575]
[1726205241325,0.086324,57919.0,57918.0,0.086324]
[1726205241831,0.086324,57919.0,57918.0,0.13800328]
[1726205242035,0.089324,57919.0,57918.0,0.086324]
[1726205242243,0.089324,57919.0,57918.0,0.13799097]
[1726205242441,0.089324,57919.0,57918.0,0.086324]
[1726205242631,0.092324,57919.0,57918.0,0.086324]
[1726205245037,0.212324,57919.0,57918.0,0.086324]
[1726205245234,0.212324,57919.0,57918.0,0.13801102]
[1726205245436,0.212324,57919.0,57918.0,0.086324]
[1726205248633,0.212324,57919.0,57918.0,0.15524463]
[1726205249029,0.43963169,57919.0,57918.0,0.086324]
[1726205249239,0.30155207,57919.0,57918.0,0.086324]
[1726205252136,0.21522807,57919.0,57910.0,0.004]
[1726205252339,0.206335,57911.0,57910.0,0.004]
[1726205252537,0.086336,57910.0,57909.0,0.3608]
[1726205253337,0.12140938,57910.0,57909.0,0.3608]
[1726205253646,0.080336,57910.0,57909.0,0.3608]
[1726205254235,0.081336,57910.0,57909.0,0.3678]
[1726205254640,0.081336,57910.0,57909.0,0.3748]
[1726205255737,0.081336,57910.0,57909.0,0.461138]
[1726205255934,0.081336,57910.0,57909.0,0.57525527]
[1726205257346,0.081336,57910.0,57909.0,0.57525915]
[1726205257546,0.081336,57910.0,57909.0,0.66145145]
[1726205258045,0.081336,57910.0,57909.0,0.66145221]
[1726205258245,0.081336,57910.0,57909.0,0.57525915]
[1726205258538,0.081336,57910.0,57909.0,0.66144862]
[1726205259743,0.081336,57910.0,57909.0,0.57525915]
[1726205260542,0.081336,57910.0,57909.0,0.66143992]
[1726205261148,0.081336,57910.0,57909.0,0.30063992]
[1726205262233,0.081336,57910.0,57909.0,0.21445915]
[1726205263945,0.081336,57910.0,57909.0,0.100338]
[1726205269145,0.081336,57910.0,57909.0,0.220338]
[1726205270145,0.081336,57910.0,57909.0,0.581138]
[1726205270347,0.001,57910.0,57909.0,0.78137399]
[1726205270953,0.001,57910.0,57909.0,0.6673059]
[1726205271144,0.001,57910.0,57909.0,0.581138]
[1726205277149,0.001,57910.0,57909.0,0.461138]
[1726205280364,0.001,57910.0,57909.0,0.1693258]
[1726205281456,0.001,57910.0,57909.0,0.100338]
[1726205281855,0.568136,57910.0,57909.0,0.014]
[1726205282054,0.568136,57910.0,57909.0,0.06576311]
[1726205282055,0.654472,57910.0,57909.0,0.06576311]
[1726205282251,0.654472,57910.0,57909.0,0.014]
[1726205282451,0.172684,57906.0,57905.0,0.9038]
[1726205282651,0.77961139,57906.0,57905.0,0.44784]
[1726205282857,0.172702,57900.0,57899.0,0.004]
[1726205283070,0.56626971,57900.0,57891.0,0.004]
[1726205283257,0.4808,57893.0,57887.0,0.004]
[1726205283451,0.4808,57893.0,57881.0,0.004]
[1726205283452,0.3608,57888.0,57881.0,0.004]
[1726205283663,0.567178,57882.0,57881.0,0.004]
[1726205283963,0.086384,57878.0,57873.0,0.004]
[1726205284269,0.5608,57876.0,57872.0,0.0498]
[1726205285164,0.3498,57876.0,57872.0,0.0498]
[1726205285352,0.436187,57876.0,57872.0,0.0498]
[1726205285861,0.437187,57876.0,57872.0,0.0578]
[1726205286161,0.438187,57876.0,57872.0,0.10956311]
[1726205286381,0.438187,57876.0,57872.0,0.0578]
[1726205286382,0.086388,57875.0,57872.0,0.0578]
[1726205287857,0.087388,57875.0,57872.0,0.0548]
[1726205288262,0.088388,57875.0,57872.0,0.0548]
[1726205288656,0.3608,57874.0,57872.0,0.005]
[1726205288859,0.086391,57873.0,57872.0,0.005]
[1726205289060,0.172782,57873.0,57872.0,0.005]
[1726205289265,0.086391,57873.0,57872.0,0.005]
[1726205289569,0.11390205,57873.0,57872.0,0.005]
[1726205290565,1.23230205,57873.0,57872.0,0.005]
[1726205291064,0.63230205,57873.0,57872.0,0.005]
[1726205291259,0.63230205,57873.0,57863.0,0.0952]
[1726205291260,0.086402,57866.0,57863.0,0.0952]
[1726205291467,0.3608,57866.0,57863.0,0.0952]
[1726205292569,0.3628,57866.0,57863.0,0.0952]
[1726205292762,0.086405,57864.0,57860.0,0.31371687]
[1726205293073,0.3608,57861.0,57860.0,0.31371687]
[1726205293372,0.31757003,57861.0,57860.0,0.31371687]
[1726205294077,0.25704806,57861.0,57860.0,0.31371687]
[1726205294463,0.25704806,57861.0,57860.0,0.31471687]
[1726205294968,0.25704806,57861.0,57860.0,0.31371687]
[1726205295166,0.25804806,57861.0,57860.0,0.31371687]
[1726205295673,0.25904806,57861.0,57860.0,0.31371687]
[1726205296270,0.25904806,57861.0,57860.0,1.45371687]
[1726205296674,0.25904806,57861.0,57860.0,0.31371687]
[1726205297566,0.25904806,57861.0,57860.0,0.22730687]
[1726205298878,0.002,57861.0,57860.0,0.22730687]
[1726205302176,0.002,57861.0,57860.0,0.31371787]
[1726205304075,0.002,57861.0,57860.0,0.23371787]
[1726205306281,0.002,57861.0,57860.0,1.37371787]
[1726205307273,0.004,57865.0,57864.0,0.086405]
[1726205307573,0.3648,57869.0,57868.0,0.086399]
[1726205307777,0.3608,57869.0,57868.0,0.206399]
[1726205308780,0.3628,57869.0,57868.0,0.206399]
[1726205309181,0.002,57869.0,57868.0,0.206399]
[1726205309380,0.002,57869.0,57868.0,0.255499]
[1726205309877,0.008,57874.0,57873.0,0.086391]
[1726205310185,0.3608,57875.0,57874.0,0.08639]
[1726205310369,0.3608,57875.0,57874.0,0.18750772]
[1726205310568,0.004,57879.0,57878.0,0.086384]
[1726205310766,0.3608,57881.0,57878.0,0.286384]
[1726205311171,0.3608,57881.0,57879.0,0.0486]
[1726205311367,0.3608,57881.0,57879.0,0.10012108]
[1726205311975,0.447179,57881.0,57879.0,0.10012108]
[1726205312178,0.090374,57885.0,57879.0,0.10012108]
[1726205312375,0.090374,57885.0,57884.0,0.2]
[1726205312579,0.086374,57885.0,57882.0,0.1725449]
[1726205312879,0.086376,57884.0,57882.0,0.1725449]
[1726205314775,0.100376,57884.0,57882.0,0.1725449]
[1726205314980,0.114376,57884.0,57882.0,0.1725449]
[1726205315380,0.028,57884.0,57883.0,0.086376]
[1726205317376,0.014,57884.0,57883.0,0.086376]
[1726205317569,0.028,57884.0,57883.0,0.086376]
[1726205317770,0.028,57884.0,57881.0,0.027688]
[1726205318072,0.086381,57880.0,57879.0,0.0486]
[1726205320483,0.098381,57880.0,57879.0,0.0486]
[1726205320679,0.112381,57880.0,57879.0,0.0486]
[1726205324979,0.112381,57880.0,57879.0,0.11749652]
[1726205325181,0.112381,57880.0,57879.0,0.0486]
[1726205325887,0.112381,57880.0,57879.0,0.2486]
[1726205327083,0.026,57880.0,57879.0,0.334982]
[1726205328181,0.026,57880.0,57879.0,0.4211499]
[1726205328687,0.3648,57888.0,57887.0,0.08637]
[1726205328886,0.3608,57888.0,57887.0,0.08637]
[1726205329293,0.3608,57888.0,57887.0,0.13577]
[1726205329988,0.3748,57888.0,57887.0,0.13577]
[1726205330191,0.014,57888.0,57887.0,0.13577]
[1726205330389,0.014,57888.0,57887.0,0.18457]
[1726205330891,0.025,57888.0,57887.0,0.18557]
[1726205332777,0.025,57888.0,57887.0,0.2372317]
[1726205332978,0.025,57888.0,57887.0,0.18557]
[1726205334688,0.025,57888.0,57887.0,0.25445101]
[1726205336496,0.025,57888.0,57887.0,0.25449823]
[1726205336683,0.025,57888.0,57887.0,0.18557]
[1726205340100,0.025,57888.0,57887.0,0.30557]
[1726205341297,0.025,57888.0,57887.0,0.66637]
[1726205344599,0.025,57888.0,57887.0,0.30557]
[1726205344801,0.025,57888.0,57887.0,0.66637]
[1726205348108,0.025,57888.0,57887.0,0.71808176]
[1726205348309,0.025,57888.0,57887.0,0.66637]
[1726205352800,0.025,57888.0,57887.0,0.58]
[1726205352998,0.025,57888.0,57887.0,0.5312]
[1726205353403,0.025,57888.0,57887.0,0.61757]
[1726205355110,0.025,57888.0,57887.0,0.25677]
[1726205355315,0.025,57888.0,57887.0,0.30848176]
[1726205355914,0.025,57888.0,57887.0,0.25677]
[1726205357314,0.025,57888.0,57887.0,0.32571902]
[1726205359313,0.025,57888.0,57887.0,0.25677]
[1726205359614,0.111369,57888.0,57887.0,0.13677]
[1726205359921,0.111369,57888.0,57887.0,0.32585079]
[1726205360313,0.111369,57888.0,57887.0,0.23948079]
[1726205360819,0.111369,57888.0,57887.0,0.34287126]
[1726205360820,0.025,57888.0,57887.0,0.34287126]
[1726205361113,0.025,57888.0,57887.0,0.25677]
[1726205361313,0.025,57888.0,57887.0,0.13677]
[1726205361508,0.025,57888.0,57887.0,0.25677]
[1726205361509,0.06573873,57888.0,57887.0,0.25677]
[1726205364925,0.12491957,57894.0,57887.0,0.85677]
[1726205365122,0.12091957,57895.0,57893.0,0.4808]
[1726205365427,0.12091957,57896.0,57895.0,0.086358]
[1726205365622,0.04110906,57896.0,57895.0,0.206358]
[1726205366114,0.04110906,57896.0,57895.0,0.286358]
[1726205366927,0.05510906,57896.0,57895.0,0.287358]
[1726205367310,0.05610906,57896.0,57895.0,0.288358]
[1726205368319,0.015,57896.0,57895.0,0.288358]
[1726205368823,0.015,57896.0,57895.0,0.31517254]
[1726205370526,0.015,57896.0,57895.0,0.36692369]
[1726205370915,0.015,57896.0,57895.0,0.31517254]
[1726205372633,0.015,57896.0,57895.0,0.36691381]
[1726205372822,0.015,57896.0,57895.0,0.31517254]
[1726205373023,0.015,57896.0,57895.0,0.36690947]
[1726205375030,0.301357,57896.0,57895.0,0.002]
[1726205375521,0.101357,57896.0,57895.0,0.002]
[1726205376326,0.23496539,57896.0,57895.0,0.002]
[1726205376544,0.35671664,57896.0,57895.0,0.002]
[1726205377353,0.51192777,57896.0,57895.0,0.002]
[1726205377548,0.4846793,57896.0,57895.0,0.002]
[1726205377742,0.32946817,57896.0,57895.0,0.002]
[1726205377943,0.4846815,57896.0,57895.0,0.002]
[1726205378246,0.32946817,57896.0,57895.0,0.002]
[1726205379251,0.32943853,57896.0,57895.0,0.002]
[1726205380043,0.48466869,57896.0,57895.0,0.002]
[1726205380851,0.51245773,57896.0,57895.0,0.002]
[1726205381651,0.35722757,57896.0,57895.0,0.002]
[1726205381852,0.51245773,57896.0,57895.0,0.002]
[1726205382054,0.35722757,57896.0,57895.0,0.002]
[1726205383353,0.21550304,57896.0,57895.0,0.002]
[1726205384744,0.21550304,57896.0,57895.0,0.0537326]
[1726205385142,0.21550304,57896.0,57895.0,0.002]
[1726205390654,0.21550304,57896.0,57895.0,0.07108672]
[1726205391348,0.25627822,57896.0,57895.0,0.002]
[1726205393752,0.25634366,57896.0,57895.0,0.002]
[1726205397363,0.37717518,57896.0,57895.0,0.002]
[1726205397764,0.37718078,57896.0,57895.0,0.002]
[1726205397967,0.25634366,57896.0,57895.0,0.002]
[1726205398168,0.37718077,57896.0,57895.0,0.002]
[1726205398465,0.21550304,57896.0,57895.0,0.002]
[1726205399262,0.015,57896.0,57895.0,0.569158]
[1726205399454,0.015,57896.0,57895.0,0.68594472]
[1726205399858,0.015,57896.0,57895.0,0.616858]
[1726205400055,0.015,57896.0,57895.0,0.68594472]
[1726205400253,0.015,57896.0,57895.0,0.59958672]
[1726205400568,0.015,57896.0,57895.0,0.5305]
[1726205401167,0.101357,57896.0,57895.0,0.4105]
[1726205402066,0.101357,57896.0,57895.0,0.43555473]
[1726205402360,0.101357,57896.0,57895.0,0.4105]
[1726205403067,0.462157,57896.0,57895.0,0.10149702]
[1726205403262,0.101357,57896.0,57895.0,0.10149702]
[1726205403463,0.101357,57896.0,57895.0,0.0497]
[1726205403959,0.101357,57896.0,57895.0,0.10149702]
[1726205404264,0.101357,57896.0,57895.0,0.0497]
[1726205404459,0.101357,57896.0,57895.0,0.10149702]
[1726205405051,0.101357,57896.0,57895.0,0.0497]
[1726205406458,0.18960998,57896.0,57895.0,0.0497]
[1726205406766,0.39883322,57896.0,57895.0,0.0497]
[1726205406967,0.24360174,57896.0,57895.0,0.0497]
[1726205407452,0.18960998,57896.0,57895.0,0.0497]
[1726205408867,0.39886841,57896.0,57895.0,0.0497]
[1726205409058,0.18960998,57896.0,57895.0,0.0497]
[1726205409459,0.28035773,57896.0,57895.0,0.0497]
[1726205409773,0.32777264,57896.0,57895.0,0.0497]
[1726205409976,0.18575453,57896.0,57895.0,1.16786]
[1726205410269,0.12088779,57902.0,57895.0,0.7697]
[1726205410568,0.004,57905.0,57895.0,0.7697]
[1726205410569,0.12488779,57904.0,57902.0,0.086348]
[1726205410759,0.12088779,57905.0,57904.0,0.086345]
[1726205410962,0.004,57909.0,57904.0,0.12]
[1726205411156,0.12488779,57910.0,57902.0,0.3608]
[1726205411157,0.12088779,57911.0,57908.0,0.4808]
[1726205411361,0.086329,57915.0,57910.0,0.12]
[1726205411362,0.12088779,57912.0,57910.0,0.12]
[1726205411661,0.20721679,57915.0,57911.0,0.12]
[1726205411858,0.20721679,57915.0,57914.0,0.12]
[1726205412462,0.20721679,57915.0,57909.0,0.0489]
[1726205412463,0.086331,57914.0,57911.0,0.12]
[1726205413669,0.086331,57914.0,57911.0,0.121]
[1726205414870,0.086333,57913.0,57911.0,0.121]
[1726205415782,0.086333,57913.0,57911.0,0.122]
[1726205417877,0.086333,57912.0,57911.0,0.122]
[1726205428192,0.086333,57912.0,57911.0,0.002]
[1726205428603,0.12554461,57912.0,57911.0,0.002]
[1726205428995,0.33187761,57912.0,57911.0,0.002]
[1726205430100,0.086345,57904.0,57903.0,0.0479]
[1726205430296,0.206345,57904.0,57903.0,0.0479]
[1726205431007,0.086345,57904.0,57903.0,0.0479]
[1726205432802,0.087345,57904.0,57903.0,0.0479]
[1726205434005,0.087345,57904.0,57896.0,0.0474]
[1726205434006,0.4818,57904.0,57896.0,0.0474]
[1726205434212,0.086355,57897.0,57896.0,0.0474]
[1726205435411,0.086355,57897.0,57896.0,0.0514]
[1726205435808,0.086355,57897.0,57896.0,0.0534]
[1726205436001,0.12505374,57897.0,57896.0,0.0534]
[1726205436611,0.086355,57897.0,57896.0,0.0534]
[1726205436811,0.086355,57897.0,57896.0,0.0514]
[1726205437012,0.087355,57897.0,57896.0,0.0524]
[1726205438210,0.087355,57897.0,57896.0,0.0494]
[1726205439711,0.087355,57897.0,57896.0,0.0484]
[1726205439918,0.086355,57897.0,57896.0,0.0484]
[1726205440215,0.087355,57897.0,57896.0,0.0494]
[1726205440510,0.087355,57897.0,57896.0,0.0484]
[1726205440717,0.087355,57897.0,57896.0,0.0494]
[1726205442123,0.087355,57897.0,57896.0,0.0484]
[1726205442413,0.17371,57897.0,57896.0,0.0494]
[1726205443614,0.17371,57897.0,57896.0,0.11846202]